[Event "European Online Club-ch-G 2021"]
[Site "Online"]
[Date "2021.03.27"]
[Round "3.7"]
[White "Mastrovasilis, Dimitrios"]
[Black "Kobalia, Mikhail"]
[Result "1-0"]
[ECO "B18"]
[WhiteElo "2609"]
[BlackElo "2587"]
[Annotator "ChessBase"]
[PlyCount "147"]
[EventDate "2021.03.27"]
[EventType "team-tourn"]
[EventCountry "NET"]
[SourceTitle "playchess.com"]
[Source "ChessBase"]
[SourceQuality "1"]
[TimeControl "900+5"]

1. e4 {[%emt 0:00:00]} c6 {[%emt 0:00:03]} 2. d4 {[%emt 0:00:09]} d5 {[%emt 0:00:03]} 3. Nd2 {[%emt 0:00:17]} dxe4 {[%emt 0:00:03]} 4. Nxe4 {[%emt 0:00:02]} Bf5 {[%emt 0:00:02]} 5. Qf3 {[%emt 0:00:03]} e6 {[%emt 0:00:11]} 6. Ne2 {[%emt 0:00:03]} Be7 {[%emt 0:00:46]} 7. N2g3 {[%emt 0:01:00]} Bg6 {[%emt 0:00:05]} 8. c3 {[%emt 0:00:20]} Nd7 {[%emt 0:01:22]} 9. h4 {[%emt 0:02:02]} h5 {[%emt 0:00:09]} 10. Bd3 {[%emt 0:00:16]} Nh6 {[%emt 0:03:12]} 11. Nxh5 {[%emt 0:02:19]} Nf5 {[%emt 0:00:14]} 12. Nf4 {[%emt 0:00:21]} Rxh4 {[%emt 0:02:04]} 13. g3 {[%emt 0:00:41]} Rxh1+ {[%emt 0:00:49]} 14. Qxh1 {[%emt 0:00:00]} Nf8 {[%emt 0:00:03]} 15. Qh8 {[%emt 0:01:42]} Qb6 {[%emt 0:01:00]} 16. Nxg6 {[%emt 0:00:12]} fxg6 {[%emt 0:00:00]} 17. g4 {[%emt 0:00:20]} O-O-O {[%emt 0:00:18]} 18. gxf5 {[%emt 0:00:22]} exf5 {[%emt 0:00:01]} 19. Nd2 {[%emt 0:00:56]} Ne6 {[%emt 0:00:08]} 20. Qh3 {[%emt 0:00:37]} c5 {[%emt 0:00:14]} 21. Nc4 {[%emt 0:00:18]} Qc7 {[%emt 0:00:04]} 22. Be3 {[%emt 0:00:21]} cxd4 {[%emt 0:00:18]} 23. cxd4 {[%emt 0:00:02]} Nxd4 {[%emt 0:00:02]} 24. Rc1 {[%emt 0:00:13]} Kb8 {[%emt 0:00:03]} 25. Qg3 {[%emt 0:01:06]} Qxg3 {[%emt 0:00:05]} 26. fxg3 {[%emt 0:00:00]} Bf6 {[%emt 0:00:06]} 27. Bf4+ {[%emt 0:00:07]} Ka8 {[%emt 0:00:03]} 28. Kf2 {[%emt 0:00:17]} Ne6 {[%emt 0:00:27]} 29. Be2 {[%emt 0:00:40]} Nxf4 {[%emt 0:00:51]} 30. gxf4 {[%emt 0:00:00]} g5 {[%emt 0:00:02]} 31. fxg5 {[%emt 0:00:14]} Bxg5 {[%emt 0:00:00]} 32. Rd1 {[%emt 0:00:01]} Rxd1 {[%emt 0:00:24]} 33. Bxd1 {[%emt 0:00:00]} Kb8 {[%emt 0:00:02]} 34. b3 {[%emt 0:00:36]} Bf6 {[%emt 0:00:34]} 35. Bh5 {[%emt 0:00:24]} Kc7 {[%emt 0:00:17]} 36. Bg6 {[%emt 0:00:02]} b5 {[%emt 0:00:06]} 37. Ne3 {[%emt 0:00:09]} Kc6 {[%emt 0:00:04]} 38. Bxf5 {[%emt 0:00:03]} Kc5 {[%emt 0:00:04]} 39. Bd7 {[%emt 0:00:27]} a6 {[%emt 0:00:29]} 40. Nc2 {[%emt 0:00:13]} Bc3 {[%emt 0:00:18]} 41. Ke3 {[%emt 0:00:03]} Bf6 {[%emt 0:00:02]} 42. Kd3 {[%emt 0:00:06]} Bb2 {[%emt 0:00:06]} 43. Bc8 {[%emt 0:00:02]} a5 {[%emt 0:00:07]} 44. Bd7 {[%emt 0:00:02]} g5 {[%emt 0:00:37]} 45. Ne3 {[%emt 0:00:20]} Kb4 {[%emt 0:00:09]} 46. a4 {[%emt 0:00:24]} bxa4 {[%emt 0:00:07]} 47. bxa4 {[%emt 0:00:00]} Bc1 {[%emt 0:00:08]} 48. Ke4 {[%emt 0:00:04]} Kc5 {[%emt 0:00:10]} 49. Nf5 {[%emt 0:00:06]} Bd2 {[%emt 0:00:26]} 50. Be8 {[%emt 0:00:02]} Bc1 {[%emt 0:00:08]} 51. Ng3 {[%emt 0:00:12]} Kd6 {[%emt 0:00:03]} 52. Kf5 {[%emt 0:00:02]} Kd5 {[%emt 0:00:05]} 53. Bh5 {[%emt 0:00:08]} Kc5 {[%emt 0:00:04]} 54. Ne4+ {[%emt 0:00:02]} Kc4 {[%emt 0:00:03]} 55. Be8 {[%emt 0:00:03]} Kd5 {[%emt 0:00:05]} 56. Nxg5 {[%emt 0:00:02]} Kd6 {[%emt 0:00:04]} 57. Bb5 {[%emt 0:00:05]} Kd5 {[%emt 0:00:02]} 58. Nf3 {[%emt 0:00:01]} Be3 {[%emt 0:00:05]} 59. Ne5 {[%emt 0:00:02]} Bd2 {[%emt 0:00:08]} 60. Nc4 {[%emt 0:00:05]} Bb4 {[%emt 0:00:02]} 61. Kf6 {[%emt 0:00:06]} Kc5 {[%emt 0:00:26]} 62. Ke6 {[%emt 0:00:02]} Bc3 {[%emt 0:00:04]} 63. Kd7 {[%emt 0:00:03]} Kb4 {[%emt 0:00:14]} 64. Kc6 {[%emt 0:00:04]} Bf6 {[%emt 0:00:02]} 65. Kb6 {[%emt 0:00:04]} Bd8+ {[%emt 0:00:04]} 66. Ka6 {[%emt 0:00:00]} Bc7 {[%emt 0:00:03]} 67. Ne3 {[%emt 0:00:03]} Bd8 {[%emt 0:00:04]} 68. Nd5+ {[%emt 0:00:10]} Kc5 {[%emt 0:00:02]} 69. Nf4 {[%emt 0:00:03]} Kb4 {[%emt 0:00:03]} 70. Ne6 {[%emt 0:00:06]} Bf6 {[%emt 0:00:02]} 71. Nf8 {[%emt 0:00:03]} Bd8 {[%emt 0:00:04]} 72. Nd7 {[%emt 0:00:00]} Bc7 {[%emt 0:00:06]} 73. Kb7 {[%emt 0:00:02]} Bd6 {[%emt 0:00:17]} 74. Nb8 {[%emt 0:00:03]} 1-0

[Event "European Online Club-ch-G 2021"]
[Site "Online"]
[Date "2021.03.27"]
[Round "3.8"]
[White "Murzin, Volodar"]
[Black "Tazbir, Marcin"]
[Result "1/2-1/2"]
[ECO "C00"]
[WhiteElo "2478"]
[BlackElo "2513"]
[Annotator "ChessBase"]
[PlyCount "79"]
[EventDate "2021.03.27"]
[EventType "team-tourn"]
[EventCountry "NET"]
[SourceTitle "playchess.com"]
[Source "ChessBase"]
[SourceQuality "1"]
[TimeControl "900+5"]

1. e4 {[%emt 0:00:00]} c5 {[%emt 0:00:03]} 2. Nf3 {[%emt 0:00:04]} e6 {[%emt 0:00:02]} 3. g3 {[%emt 0:00:03]} Nc6 {[%emt 0:00:02]} 4. Bg2 {[%emt 0:00:02]} g6 {[%emt 0:00:02]} 5. O-O {[%emt 0:00:50]} Bg7 {[%emt 0:00:03]} 6. Qe2 {[%emt 0:00:59]} Nge7 {[%emt 0:00:04]} 7. d3 {[%emt 0:00:05]} O-O {[%emt 0:00:02]} 8. Nbd2 {[%emt 0:00:04]} d6 {[%emt 0:00:03]} 9. a4 {[%emt 0:00:14]} b6 {[%emt 0:00:04]} 10. c3 {[%emt 0:00:02]} Bb7 {[%emt 0:00:10]} 11. Re1 {[%emt 0:00:01]} Qd7 {[%emt 0:00:03]} 12. h4 {[%emt 0:00:10]} Rae8 {[%emt 0:00:13]} 13. h5 {[%emt 0:00:17]} e5 {[%emt 0:00:02]} 14. Nc4 {[%emt 0:00:10]} d5 {[%emt 0:00:10]} 15. exd5 {[%emt 0:00:26]} Nxd5 {[%emt 0:00:03]} 16. hxg6 {[%emt 0:00:01]} hxg6 {[%emt 0:00:03]} 17. Ng5 {[%emt 0:00:04]} Ba8 {[%emt 0:01:03]} 18. Qf1 {[%emt 0:00:40]} Nc7 {[%emt 0:00:39]} 19. Bd2 {[%emt 0:06:30]} Rd8 {[%emt 0:00:22]} 20. Re3 {[%emt 0:00:49]} Nd5 {[%emt 0:03:01]} 21. Bxd5 {[%emt 0:01:02]} Qxd5 {[%emt 0:00:13]} 22. Qh3 {[%emt 0:00:03]} Rfe8 {[%emt 0:00:01]} 23. Qh7+ {[%emt 0:00:44]} Kf8 {[%emt 0:00:02]} 24. Rf3 {[%emt 0:00:01]} Rd7 {[%emt 0:00:18]} 25. Ne4 {[%emt 0:00:51]} f5 {[%emt 0:00:28]} 26. Bh6 {[%emt 0:00:53]} Bxh6 {[%emt 0:01:05]} 27. Qxh6+ {[%emt 0:00:44]} Rg7 {[%emt 0:00:04]} 28. Ncd6 {[%emt 0:01:00]} Ree7 {[%emt 0:00:56]} 29. g4 {[%emt 0:00:12]} Qe6 {[%emt 0:00:42]} 30. Kf1 {[%emt 0:00:15]} f4 {[%emt 0:00:12]} 31. Rh3 {[%emt 0:00:06]} Nd8 {[%emt 0:00:25]} 32. Qg5 {[%emt 0:00:11]} Nf7 {[%emt 0:00:56]} 33. Nxf7 {[%emt 0:00:02]} Kxf7 {[%emt 0:00:03]} 34. Rh8 {[%emt 0:00:05]} Bxe4 {[%emt 0:00:03]} 35. dxe4 {[%emt 0:00:01]} Rd7 {[%emt 0:00:44]} 36. Kg1 {[%emt 0:00:03]} Rg8 {[%emt 0:00:17]} 37. Rh7+ {[%emt 0:00:08]} Rg7 {[%emt 0:00:02]} 38. Rh8 {[%emt 0:00:03]} Rg8 {[%emt 0:00:18]} 39. Rh7+ {[%emt 0:00:04]} Rg7 {[%emt 0:00:01]} 40. Rh8 {[%emt 0:00:03]} 1/2-1/2

[Event "European Online Club-ch-G 2021"]
[Site "Online"]
[Date "2021.03.27"]
[Round "3.9"]
[White "Gazik, Viktor"]
[Black "Flear, Glenn C"]
[Result "0-1"]
[ECO "C78"]
[WhiteElo "2542"]
[BlackElo "2431"]
[Annotator "ChessBase"]
[PlyCount "96"]
[EventDate "2021.03.27"]
[EventType "team-tourn"]
[EventCountry "NET"]
[SourceTitle "playchess.com"]
[Source "ChessBase"]
[SourceQuality "1"]
[TimeControl "900+5"]

1. e4 {[%emt 0:00:00]} e5 {[%emt 0:00:05]} 2. Nf3 {[%emt 0:00:05]} Nc6 {[%emt 0:00:03]} 3. Bb5 {[%emt 0:00:03]} a6 {[%emt 0:00:02]} 4. Ba4 {[%emt 0:00:02]} Nf6 {[%emt 0:00:03]} 5. O-O {[%emt 0:00:07]} Bc5 {[%emt 0:00:10]} 6. d3 {[%emt 0:00:13]} d6 {[%emt 0:00:20]} 7. c3 {[%emt 0:00:23]} Bd7 {[%emt 0:00:37]} 8. Be3 {[%emt 0:00:08]} Bxe3 {[%emt 0:01:00]} 9. fxe3 {[%emt 0:00:00]} O-O {[%emt 0:00:03]} 10. Nbd2 {[%emt 0:00:04]} Ne7 {[%emt 0:00:08]} 11. Bc2 {[%emt 0:00:07]} Ng6 {[%emt 0:00:05]} 12. h3 {[%emt 0:00:13]} d5 {[%emt 0:00:39]} 13. exd5 {[%emt 0:01:14]} Nxd5 {[%emt 0:00:05]} 14. Qe2 {[%emt 0:00:01]} Qe7 {[%emt 0:00:09]} 15. Rae1 {[%emt 0:00:08]} Rae8 {[%emt 0:00:12]} 16. Ne4 {[%emt 0:00:41]} Kh8 {[%emt 0:00:32]} 17. Nfg5 {[%emt 0:01:44]} Nf6 {[%emt 0:02:18]} 18. Bb3 {[%emt 0:04:36]} Bc6 {[%emt 0:02:22]} 19. Ng3 {[%emt 0:00:11]} h6 {[%emt 0:01:30]} 20. Nf3 {[%emt 0:05:40]} e4 {[%emt 0:00:37]} 21. Nd4 {[%emt 0:00:04]} exd3 {[%emt 0:00:20]} 22. Qxd3 {[%emt 0:00:00]} Ne5 {[%emt 0:00:29]} 23. Qe2 {[%emt 0:00:07]} Bd5 {[%emt 0:01:36]} 24. Ngf5 {[%emt 0:00:21]} Qd8 {[%emt 0:00:21]} 25. Bxd5 {[%emt 0:00:14]} Nxd5 {[%emt 0:00:13]} 26. e4 {[%emt 0:00:13]} Ne7 {[%emt 0:00:23]} 27. Ng3 {[%emt 0:00:11]} N7g6 {[%emt 0:00:17]} 28. Ngf5 {[%emt 0:00:08]} Qg5 {[%emt 0:00:34]} 29. Kh1 {[%emt 0:00:17]} Nf4 {[%emt 0:00:38]} 30. Qc2 {[%emt 0:00:01]} g6 {[%emt 0:00:29]} 31. Ne3 {[%emt 0:00:10]} Ned3 {[%emt 0:00:09]} 32. Rd1 {[%emt 0:00:02]} Rxe4 {[%emt 0:00:15]} 33. Nf3 {[%emt 0:00:10]} Qe7 {[%emt 0:00:17]} 34. Nd5 {[%emt 0:00:02]} Nxd5 {[%emt 0:00:06]} 35. Qxd3 {[%emt 0:00:02]} Ne3 {[%emt 0:00:13]} 36. Rde1 {[%emt 0:00:09]} Nxf1 {[%emt 0:00:03]} 37. Rxf1 {[%emt 0:00:00]} Rd8 {[%emt 0:00:05]} 38. Qc2 {[%emt 0:00:05]} Re2 {[%emt 0:00:04]} 39. Qb3 {[%emt 0:00:03]} c5 {[%emt 0:00:08]} 40. Qb6 {[%emt 0:00:06]} Rd7 {[%emt 0:00:17]} 41. a4 {[%emt 0:00:05]} Kg7 {[%emt 0:00:03]} 42. a5 {[%emt 0:00:05]} Qd6 {[%emt 0:00:06]} 43. Qb3 {[%emt 0:00:04]} Qg3 {[%emt 0:00:03]} 44. Rg1 {[%emt 0:00:08]} Rf2 {[%emt 0:00:05]} 45. Ne1 {[%emt 0:00:11]} Rxg2 {[%emt 0:00:14]} 46. Rxg2 {[%emt 0:00:07]} Qxe1+ {[%emt 0:00:03]} 47. Kh2 {[%emt 0:00:03]} Qe5+ {[%emt 0:00:02]} 48. Kh1 {[%emt 0:00:01]} Rd3 {[%emt 0:00:08]} 0-1

[Event "European Online Club-ch-G 2021"]
[Site "Online"]
[Date "2021.03.27"]
[Round "3.10"]
[White "Boyer, Mahel"]
[Black "Sahidi, Samir"]
[Result "0-1"]
[ECO "B20"]
[WhiteElo "2333"]
[BlackElo "2407"]
[Annotator "NA"]
[PlyCount "98"]
[EventDate "2021.03.27"]
[EventType "team-tourn"]
[EventCountry "NET"]
[SourceTitle "playchess.com"]
[Source "ChessBase"]
[SourceQuality "1"]
[TimeControl "900+5"]

1. e4 {[%emt 0:00:00]} c5 {[%emt 0:00:11]} 2. d3 {[%emt 0:00:02]} Nc6 {[%emt 0:00:03]} 3. g3 {[%emt 0:00:01]} g6 {[%emt 0:00:01]} 4. Bg2 {[%emt 0:00:01]} Bg7 {[%emt 0:00:01]} 5. f4 {[%emt 0:00:01]} e6 {[%emt 0:00:35]} 6. Nf3 {[%emt 0:00:02]} d5 {[%emt 0:00:04]} 7. O-O {[%emt 0:00:02]} Nge7 {[%emt 0:00:07]} 8. c3 {[%emt 0:00:03]} b6 {[%emt 0:00:02]} 9. e5 {[%emt 0:00:08]} h5 {[%emt 0:00:29]} 10. Re1 {[%emt 0:01:54]} Nf5 {[%emt 0:00:31]} 11. Na3 {[%emt 0:00:11]} O-O {[%emt 0:00:49]} 12. Nc2 {[%emt 0:00:25]} Rb8 {[%emt 0:01:25]} 13. Ne3 {[%emt 0:00:25]} Nce7 {[%emt 0:01:26]} 14. Nf1 {[%emt 0:01:03]} d4 {[%emt 0:00:15]} 15. c4 {[%emt 0:00:03]} b5 {[%emt 0:00:16]} 16. b3 {[%emt 0:01:33]} bxc4 {[%emt 0:00:20]} 17. dxc4 {[%emt 0:00:16]} Bb7 {[%emt 0:00:10]} 18. Qd3 {[%emt 0:00:04]} a5 {[%emt 0:00:10]} 19. Ng5 {[%emt 0:02:13]} Qb6 {[%emt 0:00:33]} 20. Bxb7 {[%emt 0:00:13]} Rxb7 {[%emt 0:00:05]} 21. Bd2 {[%emt 0:00:58]} Ra8 {[%emt 0:00:27]} 22. Rab1 {[%emt 0:00:06]} Nc6 {[%emt 0:00:26]} 23. a4 {[%emt 0:01:02]} Rab8 {[%emt 0:00:19]} 24. Ne4 {[%emt 0:00:06]} Nb4 {[%emt 0:01:19]} 25. Bxb4 {[%emt 0:01:19]} Qxb4 {[%emt 0:00:04]} 26. h3 {[%emt 0:00:10]} Qa3 {[%emt 0:01:00]} 27. Ned2 {[%emt 0:00:18]} Bh6 {[%emt 0:00:34]} 28. g4 {[%emt 0:00:27]} Ne7 {[%emt 0:00:40]} 29. Qf3 {[%emt 0:00:11]} h4 {[%emt 0:00:12]} 30. Qe4 {[%emt 0:00:25]} Qb4 {[%emt 0:00:09]} 31. Rec1 {[%emt 0:00:25]} Qb6 {[%emt 0:00:15]} 32. Nf3 {[%emt 0:00:14]} Qc6 {[%emt 0:00:04]} 33. Qxc6 {[%emt 0:00:28]} Nxc6 {[%emt 0:00:02]} 34. g5 {[%emt 0:00:00]} Rxb3 {[%emt 0:00:51]} 35. Rxb3 {[%emt 0:00:00]} Rxb3 {[%emt 0:00:02]} 36. N1d2 {[%emt 0:00:20]} Rc3 {[%emt 0:00:07]} 37. Rxc3 {[%emt 0:00:14]} dxc3 {[%emt 0:00:04]} 38. gxh6 {[%emt 0:00:00]} cxd2 {[%emt 0:00:15]} 39. Nxd2 {[%emt 0:00:00]} Kh7 {[%emt 0:00:19]} 40. Ne4 {[%emt 0:00:13]} Kxh6 {[%emt 0:00:09]} 41. Kf2 {[%emt 0:00:02]} g5 {[%emt 0:00:23]} 42. Ke3 {[%emt 0:00:26]} Kg6 {[%emt 0:00:20]} 43. Nxg5 {[%emt 0:01:52]} Nxe5 {[%emt 0:00:08]} 44. fxe5 {[%emt 0:00:00]} Kxg5 {[%emt 0:00:05]} 45. Ke4 {[%emt 0:00:01]} Kg6 {[%emt 0:01:09]} 46. Kf4 {[%emt 0:00:08]} f6 {[%emt 0:01:20]} 47. exf6 {[%emt 0:00:00]} Kxf6 {[%emt 0:00:02]} 48. Kg4 {[%emt 0:00:44]} Ke5 {[%emt 0:00:01]} 49. Kxh4 {[%emt 0:00:01]} Kf4 {[%emt 0:00:03]} 0-1

[Event "European Online Club-ch-G 2021"]
[Site "Online"]
[Date "2021.03.27"]
[Round "3.11"]
[White "Kostolansky, Sebastian Lukas"]
[Black "Favarel, Camille"]
[Result "1-0"]
[ECO "B12"]
[WhiteElo "2393"]
[BlackElo "2188"]
[Annotator "NA"]
[PlyCount "101"]
[EventDate "2021.03.27"]
[EventType "team-tourn"]
[EventCountry "NET"]
[SourceTitle "playchess.com"]
[Source "ChessBase"]
[SourceQuality "1"]
[TimeControl "900+5"]

1. e4 {[%emt 0:00:00]} c6 {[%emt 0:00:04]} 2. d4 {[%emt 0:00:05]} d5 {[%emt 0:00:02]} 3. e5 {[%emt 0:00:02]} Bf5 {[%emt 0:00:03]} 4. h4 {[%emt 0:00:12]} h5 {[%emt 0:00:03]} 5. c4 {[%emt 0:00:04]} e6 {[%emt 0:00:14]} 6. Nc3 {[%emt 0:00:02]} Nd7 {[%emt 0:00:12]} 7. Nge2 {[%emt 0:02:21]} Be7 {[%emt 0:00:34]} 8. cxd5 {[%emt 0:02:29]} cxd5 {[%emt 0:00:23]} 9. Ng3 {[%emt 0:02:56]} Bg4 {[%emt 0:01:29]} 10. Be2 {[%emt 0:00:19]} Nh6 {[%emt 0:02:27]} 11. Bxh6 {[%emt 0:03:11]} Bxe2 {[%emt 0:00:40]} 12. Qxe2 {[%emt 0:00:03]} Rxh6 {[%emt 0:00:02]} 13. Nxh5 {[%emt 0:00:19]} g6 {[%emt 0:00:19]} 14. Nf4 {[%emt 0:00:29]} Rxh4 {[%emt 0:01:07]} 15. Rxh4 {[%emt 0:00:17]} Bxh4 {[%emt 0:00:02]} 16. Nb5 {[%emt 0:02:06]} Qa5+ {[%emt 0:00:29]} 17. Kf1 {[%emt 0:00:05]} Kf8 {[%emt 0:03:11]} 18. Rc1 {[%emt 0:00:57]} a6 {[%emt 0:01:28]} 19. Nc7 {[%emt 0:00:08]} Rb8 {[%emt 0:00:37]} 20. Ncxe6+ {[%emt 0:00:02]} fxe6 {[%emt 0:00:10]} 21. Nxg6+ {[%emt 0:00:02]} Ke8 {[%emt 0:00:47]} 22. Nxh4 {[%emt 0:00:04]} Qb5 {[%emt 0:00:02]} 23. Ng6 {[%emt 0:00:21]} Kd8 {[%emt 0:00:37]} 24. Nf4 {[%emt 0:00:06]} Ke7 {[%emt 0:00:01]} 25. Qxb5 {[%emt 0:00:12]} axb5 {[%emt 0:00:02]} 26. b3 {[%emt 0:00:02]} b4 {[%emt 0:00:02]} 27. Ke2 {[%emt 0:00:03]} Ra8 {[%emt 0:00:26]} 28. Rc2 {[%emt 0:00:02]} Ra6 {[%emt 0:00:07]} 29. Nd3 {[%emt 0:00:02]} Rb6 {[%emt 0:00:03]} 30. g4 {[%emt 0:00:02]} Nb8 {[%emt 0:00:06]} 31. Ke3 {[%emt 0:00:04]} Nc6 {[%emt 0:00:01]} 32. Nc5 {[%emt 0:00:04]} Rb5 {[%emt 0:00:07]} 33. f4 {[%emt 0:00:02]} Rb6 {[%emt 0:00:06]} 34. Nxb7 {[%emt 0:00:12]} Rxb7 {[%emt 0:00:07]} 35. Rxc6 {[%emt 0:00:01]} Ra7 {[%emt 0:00:01]} 36. Rc2 {[%emt 0:00:02]} Kf7 {[%emt 0:00:04]} 37. f5 {[%emt 0:00:02]} Re7 {[%emt 0:00:07]} 38. Kf4 {[%emt 0:00:02]} Ra7 {[%emt 0:00:07]} 39. Rh2 {[%emt 0:00:03]} Kg7 {[%emt 0:00:02]} 40. fxe6 {[%emt 0:00:02]} Kg6 {[%emt 0:00:04]} 41. Rc2 {[%emt 0:00:08]} Re7 {[%emt 0:00:07]} 42. Rc6 {[%emt 0:00:01]} Kh6 {[%emt 0:00:04]} 43. Rd6 {[%emt 0:00:03]} Kg6 {[%emt 0:00:03]} 44. Rxd5 {[%emt 0:00:02]} Ra7 {[%emt 0:00:02]} 45. Rb5 {[%emt 0:00:02]} Rxa2 {[%emt 0:00:02]} 46. Rxb4 {[%emt 0:00:02]} Rf2+ {[%emt 0:00:02]} 47. Kg3 {[%emt 0:00:02]} Rd2 {[%emt 0:00:02]} 48. Rc4 {[%emt 0:00:02]} Rd3+ {[%emt 0:00:05]} 49. Kf4 {[%emt 0:00:01]} Rxb3 {[%emt 0:00:02]} 50. d5 {[%emt 0:00:02]} Rb7 {[%emt 0:00:06]} 51. d6 {[%emt 0:00:03]} 1-0

[Event "European Online Club-ch-G 2021"]
[Site "Online"]
[Date "2021.03.27"]
[Round "3.12"]
[White "Collier, Timothy"]
[Black "Haring, Filip"]
[Result "0-1"]
[ECO "D02"]
[WhiteElo "2074"]
[BlackElo "2376"]
[Annotator "NA"]
[PlyCount "112"]
[EventDate "2021.03.27"]
[EventType "team-tourn"]
[EventCountry "NET"]
[SourceTitle "playchess.com"]
[Source "ChessBase"]
[SourceQuality "1"]
[TimeControl "900+5"]

1. d4 {[%emt 0:00:00]} Nf6 {[%emt 0:00:06]} 2. Bf4 {[%emt 0:00:04]} e6 {[%emt 0:00:03]} 3. e3 {[%emt 0:00:08]} d5 {[%emt 0:00:08]} 4. Nf3 {[%emt 0:00:02]} Bd6 {[%emt 0:00:06]} 5. Nbd2 {[%emt 0:00:57]} c5 {[%emt 0:00:37]} 6. c3 {[%emt 0:00:18]} Qc7 {[%emt 0:00:44]} 7. Bg3 {[%emt 0:00:19]} Nbd7 {[%emt 0:00:15]} 8. Bd3 {[%emt 0:01:57]} O-O {[%emt 0:00:06]} 9. O-O {[%emt 0:00:03]} b6 {[%emt 0:00:21]} 10. e4 {[%emt 0:02:44]} Bxg3 {[%emt 0:01:02]} 11. hxg3 {[%emt 0:00:06]} dxe4 {[%emt 0:00:25]} 12. Nxe4 {[%emt 0:00:22]} Bb7 {[%emt 0:00:08]} 13. Nxf6+ {[%emt 0:00:23]} Nxf6 {[%emt 0:00:04]} 14. dxc5 {[%emt 0:00:06]} Qxc5 {[%emt 0:01:11]} 15. Qe2 {[%emt 0:00:07]} Rfd8 {[%emt 0:00:55]} 16. Rad1 {[%emt 0:00:43]} Rd5 {[%emt 0:04:10]} 17. Rd2 {[%emt 0:01:54]} Rad8 {[%emt 0:00:22]} 18. Rfd1 {[%emt 0:00:03]} g6 {[%emt 0:00:57]} 19. Bb1 {[%emt 0:00:36]} Kg7 {[%emt 0:00:28]} 20. Rxd5 {[%emt 0:00:10]} Rxd5 {[%emt 0:00:05]} 21. Rxd5 {[%emt 0:00:05]} Qxd5 {[%emt 0:00:06]} 22. Ne1 {[%emt 0:01:37]} h5 {[%emt 0:01:06]} 23. Nf3 {[%emt 0:00:47]} Ng4 {[%emt 0:00:36]} 24. Qd2 {[%emt 0:00:25]} Kf8 {[%emt 0:00:36]} 25. Qd4 {[%emt 0:00:26]} Ke7 {[%emt 0:00:27]} 26. Qxd5 {[%emt 0:00:04]} Bxd5 {[%emt 0:00:02]} 27. b3 {[%emt 0:00:18]} Bxf3 {[%emt 0:01:14]} 28. gxf3 {[%emt 0:00:06]} Nf6 {[%emt 0:00:02]} 29. c4 {[%emt 0:00:27]} Kd6 {[%emt 0:00:08]} 30. b4 {[%emt 0:00:27]} Ke5 {[%emt 0:00:10]} 31. Bc2 {[%emt 0:00:30]} Kd4 {[%emt 0:00:06]} 32. Bb3 {[%emt 0:00:01]} Ne8 {[%emt 0:00:29]} 33. Kg2 {[%emt 0:00:38]} Nd6 {[%emt 0:00:06]} 34. c5 {[%emt 0:00:03]} bxc5 {[%emt 0:00:01]} 35. bxc5 {[%emt 0:00:01]} Kxc5 {[%emt 0:00:02]} 36. g4 {[%emt 0:00:19]} hxg4 {[%emt 0:00:21]} 37. fxg4 {[%emt 0:00:02]} g5 {[%emt 0:00:03]} 38. Kf3 {[%emt 0:00:21]} Kd4 {[%emt 0:00:05]} 39. Ke2 {[%emt 0:00:11]} e5 {[%emt 0:00:11]} 40. f3 {[%emt 0:00:07]} f6 {[%emt 0:00:05]} 41. Be6 {[%emt 0:00:05]} e4 {[%emt 0:00:09]} 42. fxe4 {[%emt 0:00:08]} Kxe4 {[%emt 0:00:02]} 43. Kf2 {[%emt 0:00:05]} Kf4 {[%emt 0:00:02]} 44. Ke2 {[%emt 0:00:03]} Ne4 {[%emt 0:00:08]} 45. a3 {[%emt 0:00:15]} Kg3 {[%emt 0:00:07]} 46. Ke3 {[%emt 0:00:03]} Nf2 {[%emt 0:00:02]} 47. Kd4 {[%emt 0:00:06]} Nxg4 {[%emt 0:00:03]} 48. Kc5 {[%emt 0:00:02]} Ne3 {[%emt 0:00:09]} 49. Kb5 {[%emt 0:00:04]} Nc2 {[%emt 0:00:05]} 50. Ka4 {[%emt 0:00:08]} g4 {[%emt 0:00:06]} 51. Bd5 {[%emt 0:00:06]} Kf2 {[%emt 0:00:05]} 52. Kb3 {[%emt 0:00:01]} Ne3 {[%emt 0:00:02]} 53. Be6 {[%emt 0:00:07]} g3 {[%emt 0:00:02]} 54. Bh3 {[%emt 0:00:01]} f5 {[%emt 0:00:03]} 55. Kb4 {[%emt 0:00:04]} Nc2+ {[%emt 0:00:07]} 56. Kb3 {[%emt 0:00:02]} Nxa3 {[%emt 0:00:05]} 0-1

[Event "European Online Club-ch-G 2021"]
[Site "Online"]
[Date "2021.03.27"]
[Round "3.13"]
[White "Harvey, Marcus R"]
[Black "Mica, Marek"]
[Result "1/2-1/2"]
[ECO "A30"]
[WhiteElo "2440"]
[BlackElo "2274"]
[Annotator "NA"]
[PlyCount "66"]
[EventDate "2021.03.27"]
[EventType "team-tourn"]
[EventCountry "NET"]
[SourceTitle "playchess.com"]
[Source "ChessBase"]
[SourceQuality "1"]
[TimeControl "900+5"]

1. Nf3 {[%emt 0:00:00]} Nf6 {[%emt 0:00:04]} 2. b3 {[%emt 0:00:02]} d5 {[%emt 0:00:17]} 3. Bb2 {[%emt 0:00:02]} c5 {[%emt 0:00:16]} 4. e3 {[%emt 0:00:01]} g6 {[%emt 0:00:22]} 5. c4 {[%emt 0:00:23]} Bg7 {[%emt 0:01:14]} 6. cxd5 {[%emt 0:00:03]} O-O {[%emt 0:00:16]} 7. Be2 {[%emt 0:01:01]} Nxd5 {[%emt 0:00:14]} 8. Bxg7 {[%emt 0:00:06]} Kxg7 {[%emt 0:00:01]} 9. O-O {[%emt 0:00:10]} Nc6 {[%emt 0:00:19]} 10. Qc1 {[%emt 0:00:04]} Qd6 {[%emt 0:00:34]} 11. Nc3 {[%emt 0:00:08]} Nxc3 {[%emt 0:00:35]} 12. Qxc3+ {[%emt 0:00:03]} e5 {[%emt 0:01:18]} 13. Rfc1 {[%emt 0:01:41]} b6 {[%emt 0:00:56]} 14. Bb5 {[%emt 0:00:04]} f6 {[%emt 0:01:02]} 15. Bxc6 {[%emt 0:00:03]} Qxc6 {[%emt 0:00:05]} 16. d4 {[%emt 0:00:02]} Bg4 {[%emt 0:00:36]} 17. Ne1 {[%emt 0:00:55]} exd4 {[%emt 0:00:59]} 18. exd4 {[%emt 0:00:04]} Rae8 {[%emt 0:00:46]} 19. dxc5 {[%emt 0:00:09]} bxc5 {[%emt 0:00:02]} 20. Nd3 {[%emt 0:00:13]} Qd5 {[%emt 0:00:54]} 21. Nxc5 {[%emt 0:01:58]} Be2 {[%emt 0:01:18]} 22. Qb4 {[%emt 0:00:58]} Rf7 {[%emt 0:00:30]} 23. Re1 {[%emt 0:00:30]} Re5 {[%emt 0:00:29]} 24. Rac1 {[%emt 0:01:14]} Rfe7 {[%emt 0:00:12]} 25. Na4 {[%emt 0:01:39]} a5 {[%emt 0:01:29]} 26. Qc5 {[%emt 0:01:26]} Qe4 {[%emt 0:00:39]} 27. Qe3 {[%emt 0:00:13]} Qb7 {[%emt 0:00:41]} 28. Qb6 {[%emt 0:01:36]} Qxg2+ {[%emt 0:00:33]} 29. Kxg2 {[%emt 0:00:02]} Rg5+ {[%emt 0:00:01]} 30. Kh3 {[%emt 0:00:01]} Rh5+ {[%emt 0:00:10]} 31. Kg2 {[%emt 0:00:02]} Rg5+ {[%emt 0:00:01]} 32. Kh3 {[%emt 0:00:01]} Rh5+ {[%emt 0:00:04]} 33. Kg2 {[%emt 0:00:08]} Rg5+ {[%emt 0:00:01]} 1/2-1/2